Cogmind - Beta 13 @@@ ROGUE MODE // 2024.04.22 @ 14:48:55 Player: J-mop Result: Destroyed by S-27 Virus with Autogun Performance ------------- Evolutions (6) 3000 Regions Visited (15) 3000 Robots Destroyed (142) 710 Value Destroyed (4274) 4274 Prototype IDs (31) 620 Alien Tech Used (0) 0 Bonus (1123) 1123 TOTAL SCORE: 12727 Bonus ------- High Alert Combat Kills 221 Follower Combat Kills 842 Aligned with FarCom 300 Friendly Fire -240 Cogmind --------- Core Integrity 0/1150 Matter 295/300 Energy 47/100 System Corruption 0% Temperature Cool (0) Movement Core (50) Location -4/Upper Caves Parts ------- > --- POWER (1) -------- (None) > --- PROPULSION (5) --- (None) > --- UTILITY (11) ----- Advanced Weight Redist. System Launcher Guidance Computer Hacking Suite Hacking Suite Hacking Suite Improved Hacking Suite Improved Hacking Suite Advanced System Shield > --- WEAPON (2) ------- (None) > --- INVENTORY (5) ---- Axe Peak State ------------ > --- POWER ------------ Neutrino Core > --- PROPULSION ------- Cooled VTOL Module Nuclear Pulse Array Nuclear Pulse Array > --- UTILITY ---------- Advanced Weight Redist. System Structural Scanner Launcher Guidance Computer Advanced Reaction Control System Hacking Suite Hacking Suite Hacking Suite Improved Hacking Suite Improved Hacking Suite Advanced Hacking Suite Advanced System Shield > --- WEAPON ----------- Long-range Missile Launcher Long-range Missile Launcher > --- INVENTORY -------- Antimatter Reactor Cooled VTOL Module Improved Phase Shifter Hacking Suite Katana [Rating: 93] Favorites ----------- Power Light Nuclear Core Engine Light Ion Engine Power Core Light Nuclear Core Reactor Antimatter Reactor Propulsion Light Treads Treads Light Treads Flight Unit Flight Unit Utility Hacking Suite Device Structural Scanner Storage Large Storage Unit Processor Launcher Guidance Computer Hackware Hacking Suite Protection Propulsion Shielding Weapon Katana Ballistic Gun Assault Rifle Ballistic Cannon Light Cannon Launcher Long-range Missile Launcher Special Weapon Mining Laser Slashing Weapon Katana Special Melee Weapon Datajack Build | -11 -10 -10 -10 -9 -8 -8 -7 -6 -6 -6 -5 -4 -4 -4 -4 ------- Run | Yrd Mat Min Exi Min Mat Sto Fac Fac Was Fac Fac Fac Was Fac Upp Slots Evolved 12 | . . . . . 4 . 2 2 . . 2 2 . . . Power . | . . . . . . . . . . . . . . . . Propulsion 3 | . . . . . 1 . . . . . 1 1 . . . Utility 9 | . . . . . 3 . 2 2 . . 1 1 . . . Weapon . | . . . . . . . . . . . . . . . . Parts Attached 143 | 6 7 7 1 1 25 3 8 30 1 12 19 2 1 15 5 Power 22 | 1 2 1 . . 1 . . 5 . 3 4 . . 2 3 Engine 10 | 1 2 1 . . . . . 2 . 1 2 . . . 1 Core 10 | . . . . . 1 . . 3 . 2 2 . . 1 1 Reactor 2 | . . . . . . . . . . . . . . 1 1 Propulsion 43 | 2 1 1 . . 9 2 3 9 . 3 7 1 . 5 . Treads 8 | 2 1 1 . . 4 . . . . . . . . . . Leg . | . . . . . . . . . . . . . . . . Wheel . | . . . . . . . . . . . . . . . . Hover . | . . . . . . . . . . . . . . . . Flight 35 | . . . . . 5 2 3 9 . 3 7 1 . 5 . Utility 44 | 1 4 . . . 8 1 4 8 1 4 7 1 . 3 2 Device 14 | . . . . . 2 . 1 3 . 3 3 . . 2 . Storage 5 | 1 3 . . . . . . . . . . . . . 1 Processor 3 | . 1 . . . . . . 1 1 . . . . . . Hackware 18 | . . . . . 3 . 3 4 . 1 4 1 . 1 1 Protection 4 | . . . . . 3 1 . . . . . . . . . Artifact . | . . . . . . . . . . . . . . . . Weapon 34 | 2 . 5 1 1 7 . 1 8 . 2 1 . 1 5 . Energy Gun . | . . . . . . . . . . . . . . . . Energy Cannon . | . . . . . . . . . . . . . . . . Ballistic Gun 9 | 2 . 3 1 1 2 . . . . . . . . . . Ballistic Cannon 1 | . . . . . 1 . . . . . . . . . . Launcher 13 | . . 1 . . . . 1 6 . 1 1 . 1 2 . Special Weapon 1 | . . 1 . . . . . . . . . . . . . Impact Weapon . | . . . . . . . . . . . . . . . . Slashing Weapon 8 | . . . . . 2 . . 2 . 1 . . . 3 . Piercing Weapon . | . . . . . . . . . . . . . . . . Special Melee Weapon 2 | . . . . . 2 . . . . . . . . . . Unidentified Prototypes . | . . . . . . . . . . . . . . . . Parts Lost 30 | . 1 1 . . . . 1 6 . . 5 . . 4 12 Power 6 | . 1 1 . . . . . . . . 1 . . . 3 Propulsion 7 | . . . . . . . . 2 . . 1 . . 1 3 Utility 14 | . . . . . . . 1 4 . . 3 . . 2 4 Weapon 3 | . . . . . . . . . . . . . . 1 2 Highest Loss Streak 6 | . 1 1 . . . . 1 2 . . 3 . . 3 6 To Critical Strikes 1 | . . . . . . . . . . . . . . . 1 Average Slot Usage (%) 95 | . 93 99 100 100 99 100 100 97 93 97 89 88 89 88 61 Engine 5 | . 12 13 14 14 1 . . 1 . 1 1 5 5 1 . Core 3 | . . . . . 7 9 7 4 6 4 3 . . 3 1 Treads 9 | . 28 28 28 28 4 . . . . . . . . . . Flight 12 | . . . . . 22 27 23 18 13 18 14 14 15 14 1 Device 8 | . . . . . 9 9 9 11 6 18 14 15 15 14 9 Storage 4 | . 14 14 14 14 1 . . . . . . . . . . Processor 6 | . 9 14 14 14 1 . . 4 13 6 5 5 5 5 5 Hackware 22 | . . . . . 20 27 35 40 40 34 36 36 36 35 35 Protection 3 | . . . . . 12 9 7 1 . . . . . . . Ballistic Gun 8 | . 28 14 6 16 9 9 3 . . . . . . . . Launcher 3 | . . 9 7 . . . 3 5 6 5 5 5 9 6 . Slashing Weapon 4 | . . . . . 8 9 7 5 6 5 5 5 1 3 4 Naked Turns . | . . . . . . . . . . . . . . . . Heaviest Build 88 | 13 88 28 27 26 31 12 16 22 17 23 26 26 32 35 21 Greatest Support 66 | 40 40 40 40 40 66 13 24 26 20 26 35 40 42 40 29 Greatest Overweight (x) 2 | . 2 . . . 1 . 1 1 . 1 1 . . 1 1 Average Overweight (x) . | . 1 . . . . . . . . . . . . . . Largest Inventory Capacity 25 | 8 25 15 15 15 15 5 5 5 5 5 5 5 5 5 5 Average Capacity 9 | 7 21 15 15 15 6 5 5 5 5 5 5 5 5 5 5 Most Carried 18 | 3 18 15 15 15 15 5 5 5 3 5 5 4 5 5 3 Average Carried 7 | 1 10 14 15 15 6 4 4 4 3 4 4 2 4 4 1 Final Capacity 15 | 8 15 15 15 15 5 5 5 5 5 5 5 5 5 5 5 Final Carried 15 | 1 15 15 15 15 5 5 5 4 3 5 4 4 5 2 1 Class Distribution -------------------- 30% | Mutant 22% | Hacker-Mutant 20% | Wizard-Mutant 17% | Wizard-Sprinter 6% | Hacker-Sprinter Dominant Class ---------------- Mutant | -10/Materials Mutant | -10/Mines Mutant | -10/Exiles Mutant | -9/Mines Hacker-Mutant | -8/Materials Hacker-Mutant | -8/Storage Hacker-Mutant | -7/Factory Wizard-Mutant | -6/Factory Wizard-Mutant | -6/Waste Hacker-Sprinter | -6/Factory Wizard-Mutant | -5/Factory Wizard-Sprinter | -4/Factory Wizard-Sprinter | -4/Waste Wizard-Sprinter | -4/Factory Wizard-Mutant | -4/Upper Caves Resources | -11 -10 -10 -10 -9 -8 -8 -7 -6 -6 -6 -5 -4 -4 -4 -4 ----------- Run | Yrd Mat Min Exi Min Mat Sto Fac Fac Was Fac Fac Fac Was Fac Upp Matter Collected 3849 | 227 382 159 . . 349 . 162 1011 . 344 532 138 100 331 114 Remotely . | . . . . . . . . . . . . . . . . Salvage Created 4837 | . 659 189 . . 268 . 94 1172 . 529 722 246 408 322 228 Parts 274 | . 41 9 . . 16 1 7 99 . 21 37 6 3 26 8 Haulers Intercepted 3 | . 1 . . . . . 1 1 . . . . . . . Recyclers Shooed 2 | . . . . . . . . 2 . . . . . . . Parts Field Recycled . | . . . . . . . . . . . . . . . . Retrieved Matter . | . . . . . . . . . . . . . . . . Parts Self-Destructed 8 | . . . . . . . . . . . . . . . 8 Prevented . | . . . . . . . . . . . . . . . . Kills | -11 -10 -10 -10 -9 -8 -8 -7 -6 -6 -6 -5 -4 -4 -4 -4 ------- Run | Yrd Mat Min Exi Min Mat Sto Fac Fac Was Fac Fac Fac Was Fac Upp Combat Hostiles Destroyed 72 | . 14 4 . . 3 . 1 24 . . 10 . 2 9 5 Melee 6 | . . . . . . . . 4 . . . . . . 2 Guns 18 | . 14 2 . . 1 . 1 . . . . . . . . Cannons 2 | . . . . . 2 . . . . . . . . . . AOE 46 | . . 2 . . . . . 20 . . 10 . 2 9 3 Classes Destroyed 18 | . 6 2 . . 1 . . 6 . 1 . . 1 1 . Worker 15 | . 2 . . . . . . 7 . . 1 . . 5 . Builder 10 | . . . . . . . . 9 . 1 . . . . . Tunneler 5 | . . . . . . . . . . 2 1 . . 2 . Hauler 3 | . 1 . . . . . 1 1 . . . . . . . Recycler 15 | . . 2 . . 1 . . 2 . 3 4 2 . 1 . Mechanic 3 | . . . . . . . . 2 . 1 . . . . . Operator 11 | . 2 . . . 1 1 1 1 . 1 3 . . 1 . Watcher 9 | . 2 . . . 3 . . 2 . . 2 . . . . Swarmer 15 | . 3 . . . . . . 3 . . . . . 4 5 Cutter 2 | . . . . . . . . . . . . . . 2 . Grunt 31 | . 11 2 . . 2 . 1 9 . . 6 . . . . Brawler 2 | . . . . . . . . 2 . . . . . . . Duelist 1 | . . . . . . . . 1 . . . . . . . Sentry 4 | . . . . . 1 . . 2 . . 1 . . . . Hunter 4 | . . . . . . . . 2 . . . . . 2 . Programmer 9 | . . . . . . . . 5 . . 3 . . 1 . Compactor 2 | . . . . . . . . . . . . . 2 . . Assembled 2 | . . 2 . . . . . . . . . . . . . Wasp 1 | . . . . . . . . . . . . . 1 . . Best Kill Streak 13 | . 4 3 . . 3 1 2 9 . 2 5 1 1 13 9 Combat Bots Only 9 | . 4 2 . . 2 . 1 5 . . 4 . 1 9 5 Max Kills in Single Turn 3 | . 1 1 . . 1 1 1 2 . 1 2 1 1 3 3 Gunslinging . | . . . . . . . . . . . . . . . . Exploded 3 | . . 1 . . . . . 1 . . 2 . 1 3 3 Melee 1 | . . . . . . . . 1 . . . . . . 1 Uniques/NPCs Destroyed . | . . . . . . . . . . . . . . . . Combat | -11 -10 -10 -10 -9 -8 -8 -7 -6 -6 -6 -5 -4 -4 -4 -4 -------- Run | Yrd Mat Min Exi Min Mat Sto Fac Fac Was Fac Fac Fac Was Fac Upp Hostile Shots Fired 557 | . 64 7 . . 30 . 3 180 . 1 58 2 . 61 151 Missed 252 | . 20 1 . . 10 . . 91 . 1 25 2 . 37 65 Damage Taken 5388 | . 463 158 . . 325 . 45 1307 . . 915 . . 599 1576 Core 1919 | . 68 . . . 67 . . 411 . . 223 . . 99 1051 Absorbed by Shields . | . . . . . . . . . . . . . . . . Redirected to Shielding 32 | . . . . . 32 . . . . . . . . . . Regen/Repaired (Parts) 535 | . . . . . 36 . . 274 . 137 19 . . 69 . Core Remaining (%) 81 | 100 . . . 72 . 87 100 . . 51 77 . . . . Volleys Fired 226 | . 71 24 . . 14 6 9 55 3 . 30 . 3 10 1 Largest 2 | . 2 2 . . 2 1 1 1 1 . 1 . 2 2 1 Hottest 100 | . 40 100 . . 55 25 25 43 43 . 43 . 86 86 43 Shots Fired 331 | . 142 35 . . 24 6 9 55 3 . 30 . 6 20 1 Gun 189 | . 142 18 . . 14 6 9 . . . . . . . . Cannon 10 | . . . . . 10 . . . . . . . . . . Launcher 119 | . . 4 . . . . . 55 3 . 30 . 6 20 1 Special 13 | . . 13 . . . . . . . . . . . . . Kinetic 199 | . 142 18 . . 24 6 9 . . . . . . . . Thermal 13 | . . 13 . . . . . . . . . . . . . Explosive 119 | . . 4 . . . . . 55 3 . 30 . 6 20 1 Electromagnetic . | . . . . . . . . . . . . . . . . Robot Hit Streak 14 | . 8 6 . . 12 6 6 12 11 . 14 . 10 12 . Robot Miss Streak 5 | . 3 2 . . 4 2 5 2 . . 1 . . 2 1 Penetration Max . | . . . . . . . . . . . . . . . . Secondary Targets 3 | . 3 . . . . . . . . . . . . . . Max Gunslinging Chain 1 | . 1 . . . . . . . . . . . . . . Shots Hit Robots 286 | . 82 15 . . 27 6 9 61 3 14 30 5 5 21 8 Core Hits 240 | . 39 12 . . 11 2 5 82 1 5 43 2 5 27 6 Critical Kills 3 | . 2 1 . . . . . . . . . . . . . Critical Parts Destroyed 1 | . 1 . . . . . . . . . . . . . . Critical Strikes 9 | . 3 1 . . 1 . . 1 . 1 2 . . . . Destroy 4 | . 3 1 . . . . . . . . . . . . . Blast 1 | . . . . . 1 . . . . . . . . . . Sever 4 | . . . . . . . . 1 . 1 2 . . . . Melee Attacks 351 | . . . . . 58 3 9 104 . 42 94 7 . 17 17 Impact . | . . . . . . . . . . . . . . . . Slashing 351 | . . . . . 58 3 9 104 . 42 94 7 . 17 17 Piercing . | . . . . . . . . . . . . . . . . Sneak Attacks 33 | . . . . . 3 . 2 9 . 8 4 3 . 4 . Combat Hostiles 1 | . . . . . . . . . . . . 1 . . . Follow-up Attacks . | . . . . . . . . . . . . . . . . Damage Inflicted 16796 | . 875 390 . . 705 103 279 6268 391 893 2544 272 742 2644 690 Guns 1458 | . 868 164 . . 193 103 130 . . . . . . . . Cannons 135 | . . . . . 135 . . . . . . . . . . Explosions 11265 | . . 202 . . . . . 5220 391 . 2039 . 742 2314 357 Melee 3907 | . . . . . 377 . 149 1048 . 893 505 272 . 330 333 Ramming 7 | . 7 . . . . . . . . . . . . . . Kinetic 1593 | . 868 164 . . 328 103 130 . . . . . . . . Thermal 83 | . . 24 . . . . . . . . . . . 59 . Explosive 11127 | . . 202 . . . . . 5215 391 . 2029 . 742 2191 357 Electromagnetic 79 | . . . . . . . . 5 . . 10 . . 64 . Impact . | . . . . . . . . . . . . . . . . Slashing 3907 | . . . . . 377 . 149 1048 . 893 505 272 . 330 333 Piercing . | . . . . . . . . . . . . . . . . Highest Corruption 7 | . . . . . . . . 7 7 7 2 . . . . Average Corruption 2 | . . . . . . . . 2 7 2 1 . . . . Corruption Purged 6 | . . . . . . . . 1 . 5 . . . . . Corruption Blocked . | . . . . . . . . . . . . . . . . Effects 48 | . . . . . . . . 23 1 18 6 . . . . Message Errors 14 | . . . . . . . . 10 . 3 1 . . . . Matter Fused 13 | . . . . . . . . 3 1 5 4 . . . . Heat Flow Errors 7 | . . . . . . . . 2 . 4 1 . . . . Energy Discharges 7 | . . . . . . . . 2 . 5 . . . . . Parts Rejected 1 | . . . . . . . . 1 . . . . . . . Parts Fused 1 | . . . . . . . . . . 1 . . . . . Data Loss (minor) 4 | . . . . . . . . 4 . . . . . . . Data Loss (major) 1 | . . . . . . . . 1 . . . . . . . Overload Shots . | . . . . . . . . . . . . . . . . Overflow Damage 1356 | . . 12 . . 72 . . 466 . 262 76 45 . 319 104 Projectiles . | . . . . . . . . . . . . . . . . Explosions 653 | . . 12 . . . . . 310 . . 58 . . 256 17 Melee 703 | . . . . . 72 . . 156 . 262 18 45 . 63 87 Knockbacks . | . . . . . . . . . . . . . . . . Impact . | . . . . . . . . . . . . . . . . Kinetic . | . . . . . . . . . . . . . . . . Secondary . | . . . . . . . . . . . . . . . . Self-Inflicted Damage 247 | . . 73 . . . . . 42 . . 90 . . . 42 Shots 8 | . . 3 . . . . . 2 . . 2 . . . 1 Rammed . | . . . . . . . . . . . . . . . . Targets Rammed 1 | . 1 . . . . . . . . . . . . . . Kicked . | . . . . . . . . . . . . . . . . Crushed 1 | . 1 . . . . . . . . . . . . . . Highest Temperature 191 | . 22 62 . . 1 . . 191 . 169 140 . . 5 . Average Temperature 38 | . 6 23 . . 1 . . 64 . 77 72 . . 3 . Received Heat Transfer 870 | . 192 39 . . 135 . 27 288 . . 78 . . 30 81 Siege Activations . | . . . . . . . . . . . . . . . . Robots Corrupted . | . . . . . . . . . . . . . . . . Combat Hostiles . | . . . . . . . . . . . . . . . . Parts Fried . | . . . . . . . . . . . . . . . . Impact Corruptions . | . . . . . . . . . . . . . . . . Robots Melted . | . . . . . . . . . . . . . . . . Combat Hostiles . | . . . . . . . . . . . . . . . . Parts Melted . | . . . . . . . . . . . . . . . . Heat Transferred 100 | . . 50 . . . . . . . . . . . 50 . Parts Sabotaged . | . . . . . . . . . . . . . . . . Parts Stolen . | . . . . . . . . . . . . . . . . Parts Stripped . | . . . . . . . . . . . . . . . . Power Chain Reactions . | . . . . . . . . . . . . . . . . Alert | -11 -10 -10 -10 -9 -8 -8 -7 -6 -6 -6 -5 -4 -4 -4 -4 ------- Run | Yrd Mat Min Exi Min Mat Sto Fac Fac Was Fac Fac Fac Was Fac Upp Peak Influence 755 | . 145 81 . . 252 77 109 649 308 343 384 75 192 755 . Initial 227 | . . 26 . . . 42 35 2 227 212 7 63 26 134 . Average 116 | . 58 14 . . 39 56 28 333 284 117 139 66 139 251 . Maximum Alert Level 3 | . . . . . 1 . . 2 1 1 1 . . 3 . Low Security (%) 78 | 100 100 100 . 100 97 100 100 30 . 64 68 100 100 45 . Level 1 13 | . . . . . 2 . . 23 100 35 31 . . 34 . Level 2 7 | . . . . . . . . 45 . . . . . 9 . Level 3 . | . . . . . . . . . . . . . . 11 . Level 4 . | . . . . . . . . . . . . . . . . Level 5 . | . . . . . . . . . . . . . . . . High Security . | . . . . . . . . . . . . . . . . Max Security . | . . . . . . . . . . . . . . . . Squads Dispatched 55 | . 4 . . . 3 2 3 16 . 7 10 . . 10 . Investigation 22 | . 2 . . . . 1 1 5 . 5 5 . . 3 . Extermination 9 | . . . . . . . 1 5 . 1 2 . . . . Reinforcement 20 | . 2 . . . 2 1 1 6 . 1 1 . . 6 . Assault 1 | . . . . . . . . . . . . . . 1 . Garrison 3 | . . . . . 1 . . . . . 2 . . . . Intercept . | . . . . . . . . . . . . . . . . Searches Triggered . | . . . . . . . . . . . . . . . . Construction Impeded 5 | . . . . . . . . 3 . . . . . 2 . Haulers Reinforced 2 | . . . . . . . . 1 . . . . . 1 . Active Scanning Responses . | . . . . . . . . . . . . . . . . Cargo Convoy Interrupts . | . . . . . . . . . . . . . . . . Stealth | -11 -10 -10 -10 -9 -8 -8 -7 -6 -6 -6 -5 -4 -4 -4 -4 --------- Run | Yrd Mat Min Exi Min Mat Sto Fac Fac Was Fac Fac Fac Was Fac Upp Distress Signals 12 | . 2 . . . 3 . . 3 . . 2 . . 2 . Communications Jammed . | . . . . . . . . . . . . . . . . Distress Signals . | . . . . . . . . . . . . . . . . Times Spotted 206 | . 25 9 . . 28 3 2 54 6 10 29 1 2 23 14 Peak Tracking Total 11 | . 3 2 . . 8 3 1 6 6 4 10 1 2 6 11 Tactical Retreats 29 | . . 1 . . 5 1 . 8 . 4 5 . . 3 2 Traps | -11 -10 -10 -10 -9 -8 -8 -7 -6 -6 -6 -5 -4 -4 -4 -4 ------- Run | Yrd Mat Min Exi Min Mat Sto Fac Fac Was Fac Fac Fac Was Fac Upp Traps Triggered 12 | . 1 . . . . . . 7 . 1 1 1 . 1 . Indirectly . | . . . . . . . . . . . . . . . . Trap Hack Attempts . | . . . . . . . . . . . . . . . . Triggered . | . . . . . . . . . . . . . . . . Disarmed 4 | . . . . . . . 4 . . . . . . . . Reprogrammed 6 | . . . . . . 6 . . . . . . . . . Reused 1 | . . . . . . 1 . . . . . . . . . Traps Extracted . | . . . . . . . . . . . . . . . . Installed . | . . . . . . . . . . . . . . . . Triggered 2 | . . . . . . 1 . . . . . . . . 1 Machines | -11 -10 -10 -10 -9 -8 -8 -7 -6 -6 -6 -5 -4 -4 -4 -4 ---------- Run | Yrd Mat Min Exi Min Mat Sto Fac Fac Was Fac Fac Fac Was Fac Upp Machines Disabled 42 | . . . . . . 1 1 13 . . 12 . . 15 . Max in Single Turn 4 | . . . . . . 1 1 2 . . 4 . . 4 . Garrison Access 7 | . . . . . . 1 1 1 . 1 1 . . 2 . Machines Repaired . | . . . . . . . . . . . . . . . . Machines Dismantled . | . . . . . . . . . . . . . . . . Machines Sabotaged . | . . . . . . . . . . . . . . . . Overloaded Fab Kills . | . . . . . . . . . . . . . . . . Hacking | -11 -10 -10 -10 -9 -8 -8 -7 -6 -6 -6 -5 -4 -4 -4 -4 --------- Run | Yrd Mat Min Exi Min Mat Sto Fac Fac Was Fac Fac Fac Was Fac Upp Machines Accessed 104 | . 7 1 1 . 7 3 12 27 . 17 20 . . 9 . Terminals 62 | . 6 1 . . 5 2 7 16 . 8 13 . . 4 . Fabricators 14 | . . . . . . . 1 4 . 3 4 . . 2 . Repair Stations 11 | . 1 . . . 1 . . 5 . 2 1 . . 1 . Recycling Units 1 | . . . . . . . . . . 1 . . . . . Scanalyzers 8 | . . . . . . . 3 1 . 2 1 . . 1 . Garrison Access 7 | . . . . . 1 1 1 1 . 1 1 . . 1 . Total Hacks 336 | . 15 1 1 . 29 11 38 101 . 44 61 . . 35 . Successful 235 | . 6 1 1 . 18 6 24 71 . 34 43 . . 31 . Failed 101 | . 9 . . . 11 5 14 30 . 10 18 . . 4 . Catastrophic 17 | . 1 . . . 5 1 3 4 . . 3 . . . . Database Lockouts . | . . . . . . . . . . . . . . . . Manual 114 | . 3 . 1 . 7 6 13 31 . 13 26 . . 14 . Terminals 229 | . 14 1 . . 16 8 25 71 . 24 46 . . 24 . Fabricators 30 | . . . . . . . 2 8 . 6 10 . . 4 . Repair Stations 41 | . 1 . . . 10 . . 17 . 7 2 . . 4 . Recycling Units 1 | . . . . . . . . . . 1 . . . . . Scanalyzers 23 | . . . . . . . 10 4 . 5 2 . . 2 . Garrison Access 11 | . . . . . 3 3 1 1 . 1 1 . . 1 . Terminal Hacks 147 | . 6 1 1 . 9 5 14 45 . 16 30 . . 20 . Record 13 | . . . . . . . . 6 . . 6 . . 1 . Part Schematic 13 | . . . . . 2 . 1 5 . . 4 . . 1 . Robot Schematic 1 | . . . . . . . . 1 . . . . . . . Robot Analysis 1 | . 1 . . . . . . . . . . . . . . Prototype ID Bank 2 | . . . . . . . 1 1 . . . . . . . Open Door 2 | . . . . . . 1 . . . . . . . 1 . Level Access Points 3 | . . . . . . . . 1 . 1 1 . . . . Branch Access Points 1 | . . . . . . . 1 . . . . . . . . Emergency Access Points 3 | . . . . . 1 . 1 1 . . . . . . . Terminal Index 5 | . . . . . 1 . . 1 . 1 1 . . 1 . Fabricator Index 5 | . . . . . . . 1 1 . 1 1 . . 1 . Repair Station Index 4 | . . . . . . . . 1 . 1 1 . . 1 . Scanalyzer Index 1 | . . . . . . . . 1 . . . . . . . Garrison Index 1 | . . . . . . . . . . . . . . 1 . Alert Level 20 | . 1 . . . 1 2 1 6 . 2 5 . . 2 . Unreport Threat 21 | . . . . . . 1 1 5 . 3 4 . . 7 . Locate Traps 13 | . 1 . . . 1 . 2 4 . 2 3 . . . . Disarm Traps 1 | . . . . . . . 1 . . . . . . . . Reprogram Traps 1 | . . . . . . 1 . . . . . . . . . Surveillance Status 1 | . . . . . 1 . . . . . . . . . . Recall Investigation 12 | . . . . . . . 2 3 . 4 2 . . 1 . Recall Extermination 3 | . . . . . . . . 2 . . . . . 1 . Recall Reinforcements 7 | . . . . . 1 . 1 3 . . 1 . . 1 . Recall Assault 2 | . . . . . . . . 1 . . . . . 1 . Hauler Manifests 1 | . 1 . . . . . . . . . . . . . . Registered Components 1 | . . . . . . . 1 . . . . . . . . Zone Layout 8 | . 2 1 . . 1 . . 2 . 1 1 . . . . Derelict Proto ID Bank 1 | . . . 1 . . . . . . . . . . . . Fabricator Hacks 28 | . . . . . . . 2 8 . 6 8 . . 4 . Load Schematic 14 | . . . . . . . 1 4 . 3 4 . . 2 . Build 14 | . . . . . . . 1 4 . 3 4 . . 2 . Repair Station Hacks 35 | . . . . . 9 . . 14 . 6 2 . . 4 . Scan Component 18 | . . . . . 5 . . 7 . 3 1 . . 2 . Repair 17 | . . . . . 4 . . 7 . 3 1 . . 2 . Recycling Unit Hacks 1 | . . . . . . . . . . 1 . . . . . Report Inventory 1 | . . . . . . . . . . 1 . . . . . Scanalyzer 18 | . . . . . . . 7 3 . 4 2 . . 2 . Insert Component 10 | . . . . . . . 4 2 . 2 1 . . 1 . Analyze 8 | . . . . . . . 3 1 . 2 1 . . 1 . Garrison Access Hacks 6 | . . . . . . 1 1 1 . 1 1 . . 1 . Seal Access 6 | . . . . . . 1 1 1 . 1 1 . . 1 . Unauthorized Hacks . | . . . . . . . . . . . . . . . . Terminals . | . . . . . . . . . . . . . . . . Fabricators . | . . . . . . . . . . . . . . . . Repair Stations . | . . . . . . . . . . . . . . . . Recycling Units . | . . . . . . . . . . . . . . . . Scanalyzers . | . . . . . . . . . . . . . . . . Garrison Access . | . . . . . . . . . . . . . . . . Data Cores Recovered 5 | . . . . . . . . . . 1 3 . . 1 . Used 1 | . . . . . . . . . . . 1 . . . . Hacking Detections 84 | . 6 1 . . 3 1 11 23 . 13 19 . . 7 . Full Trace Events 18 | . 1 . . . . . 1 4 . 5 5 . . 2 . Feedback Events . | . . . . . . . . . . . . . . . . Feedback Blocked . | . . . . . . . . . . . . . . . . Robot Schematics Acquired 1 | . . . . . . . . 1 . . . . . . . Robots Built . | . . . . . . . . . . . . . . . . Authchips . | . . . . . . . . . . . . . . . . Time . | . . . . . . . . . . . . . . . . Total Robot Build Rating . | . . . . . . . . . . . . . . . . Part Schematics Acquired 21 | . . . . . 2 . 4 6 . 2 5 . . 2 . Parts Built 14 | . . . . . . . 1 4 . 3 4 . . 2 . Authchips . | . . . . . . . . . . . . . . . . Time 995 | . . . . . . . 36 377 . 181 295 . . 106 . Total Part Build Rating 65 | . . . . . . . 3 16 . 13 21 . . 12 . Parts Repaired 17 | . . . . . 4 . . 7 . 3 1 . . 2 . Time 513 | . . . . . 104 . . 194 . 133 19 . . 63 . Parts Recycled . | . . . . . . . . . . . . . . . . Recycled Matter . | . . . . . . . . . . . . . . . . Retrieved Matter . | . . . . . . . . . . . . . . . . Retrieved Components . | . . . . . . . . . . . . . . . . Parts Scanalyzed 9 | . . . . . . . 4 1 . 2 1 . . 1 . Part Schematics Acquired 8 | . . . . . . . 3 1 . 2 1 . . 1 . Parts Damaged 2 | . . . . . . . 1 1 . . . . . . . Bothacking | -11 -10 -10 -10 -9 -8 -8 -7 -6 -6 -6 -5 -4 -4 -4 -4 ------------ Run | Yrd Mat Min Exi Min Mat Sto Fac Fac Was Fac Fac Fac Was Fac Upp Used RIF Installer . | . . . . . . . . . . . . . . . . Robots Hacked . | . . . . . . . . . . . . . . . . Non-combat . | . . . . . . . . . . . . . . . . Combat . | . . . . . . . . . . . . . . . . Robot Hacks Applied . | . . . . . . . . . . . . . . . . Relay Couplers Released . | . . . . . . . . . . . . . . . . Fabnet Peak Effective % . | . . . . . . . . . . . . . . . . Robots Rewired . | . . . . . . . . . . . . . . . . Allies Hacked . | . . . . . . . . . . . . . . . . Hacks Repelled . | . . . . . . . . . . . . . . . . Allies | -11 -10 -10 -10 -9 -8 -8 -7 -6 -6 -6 -5 -4 -4 -4 -4 -------- Run | Yrd Mat Min Exi Min Mat Sto Fac Fac Was Fac Fac Fac Was Fac Upp Total Allies 29 | . . 4 . . . . . 3 1 3 . . 18 . . Largest Group 18 | . . 3 . . . . . 3 1 3 . . 18 13 . Highest-Rated Group 638 | . . 40 . . . . . 93 31 93 . . 638 492 . Highest-Rated Ally 50 | . . 31 . . . . . 31 31 31 . . 50 50 . Total Orders 6 | . . 6 . . . . . . . . . . . . . STAY 1 | . . 1 . . . . . . . . . . . . . ROAM 2 | . . 2 . . . . . . . . . . . . . GUARD 3 | . . 3 . . . . . . . . . . . . . Ally Attacks 264 | . . 26 . . . . . 24 10 4 . . 80 120 . Total Damage 7911 | . . 261 . . . . . 447 215 20 . . 3072 3896 . Kills 41 | . . 5 . . . . . 7 . . . . 8 21 . Allies Corrupted . | . . . . . . . . . . . . . . . . Allies Melted . | . . . . . . . . . . . . . . . . Intel | -11 -10 -10 -10 -9 -8 -8 -7 -6 -6 -6 -5 -4 -4 -4 -4 ------- Run | Yrd Mat Min Exi Min Mat Sto Fac Fac Was Fac Fac Fac Was Fac Upp Robot Analysis Total 1 | . 1 . . . . . . . . . . . . . . Derelict Logs Recovered 2 | . . 1 . 1 . . . . . . . . . . . Drone Launches . | . . . . . . . . . . . . . . . . Drone Recoveries . | . . . . . . . . . . . . . . . . Exploration | -11 -10 -10 -10 -9 -8 -8 -7 -6 -6 -6 -5 -4 -4 -4 -4 ------------- Run | Yrd Mat Min Exi Min Mat Sto Fac Fac Was Fac Fac Fac Was Fac Upp Turns Passed 15268 | 64 2120 2063 338 45 2945 270 678 2384 49 1096 1925 101 193 635 362 Spaces Moved 17357 | 39 768 1194 210 28 1259 358 1268 4135 121 2451 3332 247 367 1213 367 Core 311 | 9 . . . . . . . . . . . . . . 302 Treads 2488 | 30 768 1194 210 28 258 . . . . . . . . . . Legs . | . . . . . . . . . . . . . . . . Wheels . | . . . . . . . . . . . . . . . . Hover . | . . . . . . . . . . . . . . . . Flight 14558 | . . . . . 1001 358 1268 4135 121 2451 3332 247 367 1213 65 Fastest Speed 24 | 50 160 160 160 160 34 34 34 30 34 30 27 32 28 24 30 Average Speed 58 | 134 244 160 160 160 58 34 46 36 34 32 35 32 33 31 84 Slowest Speed 320 | 160 320 160 160 160 225 34 110 100 34 117 120 32 37 106 100 Overloaded Moves 147 | . . . . . . . . . . . . . 27 107 13 Propulsion Burnouts . | . . . . . . . . . . . . . . . . Robots Hopped 33 | . . . . . 1 1 6 11 . 2 3 . . 9 . Cave-ins Triggered 1 | . . . . . . . . 1 . . . . . . . Exploration Rate (%) 56 | 4 99 99 63 14 87 43 31 76 77 34 76 9 97 28 62 Regions Visited 15 Branch Regions 5 Pre-discovered Areas . | . . . . . . . . . . . . . . . . Known Exits Taken 2 | . . . . . . . . . . 1 1 . . . . Unknown Exits Taken 9 | 1 1 1 1 1 1 1 1 . . . . . . 1 . Scrap Searched 2 | . . 2 . . . . . . . . . . . . . Spaces Dug 240 | . . 2 . . 41 2 7 67 . 28 77 1 . 11 4 Terrain Destroyed 1075 | . . 22 . . 41 2 7 451 29 28 224 1 82 166 22 Melee 238 | . . . . . 41 2 7 67 . 28 77 1 . 11 4 Projectile 3 | . . 3 . . . . . . . . . . . . . AOE 834 | . . 19 . . . . . 384 29 . 147 . 82 155 18 Terrain Rammed . | . . . . . . . . . . . . . . . . Walls Destroyed . | . . . . . . . . . . . . . . . . Machines Disabled . | . . . . . . . . . . . . . . . . Actions | -11 -10 -10 -10 -9 -8 -8 -7 -6 -6 -6 -5 -4 -4 -4 -4 --------- Run | Yrd Mat Min Exi Min Mat Sto Fac Fac Was Fac Fac Fac Was Fac Upp Total 21596 | 51 884 1288 212 28 3355 494 1333 4766 124 2681 3895 259 429 1404 393 Wait 3273 | . 7 49 . . 1959 120 33 374 . 153 388 . 58 132 . Move 17279 | 38 767 1193 209 27 1256 355 1255 4113 120 2446 3325 247 366 1195 367 Hop 32 | . . . . . 1 1 6 11 . 2 3 . . 8 . Pick Up 174 | 7 24 8 1 . 21 3 8 42 . 18 21 2 1 15 3 Fast Attach . | . . . . . . . . . . . . . . . . Attach 81 | 6 3 2 . . 13 . 4 18 1 7 15 2 . 6 4 Detach 4 | . . . . . . . . 2 . . 1 1 . . . Swap 62 | . 4 5 1 1 12 3 4 12 . 5 4 . 1 9 1 Drop 105 | . 7 7 1 . 21 3 5 27 . 8 14 . . 12 . Fire 226 | . 71 24 . . 14 6 9 55 3 . 30 . 3 10 1 Melee 351 | . . . . . 58 3 9 104 . 42 94 7 . 17 17 Ram . | . . . . . . . . . . . . . . . . Kick . | . . . . . . . . . . . . . . . . Crush 1 | . 1 . . . . . . . . . . . . . . Escape Stasis 8 | . . . . . . . . 8 . . . . . . . Rewire . | . . . . . . . . . . . . . . . . Trap . | . . . . . . . . . . . . . . . . Miscellaneous . | . . . . . . . . . . . . . . . . Route ------- -11/Scrapyard -10/Materials (discovered 4 exits: [*Mat x3] / *Min) -10/Mines (discovered 3 exits: [*Mat x2] / *Exi) -10/Exiles (discovered 2 exits: [*Min x2]) -9/Mines -8/Materials (discovered 4 exits: *Fac x2 / *Sto x2) -8/Storage -7/Factory (discovered 3 exits: *Fac / Low x2) -6/Factory (discovered 5 exits: *Fac x4 / [*Low]) -6/Waste -6/Factory (discovered 4 exits: *Fac x4) -5/Factory (discovered 6 exits: *Fac x4 / [*Upp x2]) -4/Factory -4/Waste -4/Factory (discovered 4 exits: [*Res] / [*Upp x2] / [*Ext]) -4/Upper Caves History --------- Turn | Location | Event 29 | -11/Scrapyard | Discovered new exit (range 16) 65 | -11/Scrapyard | Entered Materials 309 | -10/Materials | Build established: Mutant 647 | -10/Materials | Discovered new exit (range 15) 993 | -10/Materials | Discovered new exit (range 5) 1934 | -10/Materials | Discovered new exit (range 11) 2034 | -10/Materials | Discovered new exit (range 17) 2185 | -10/Materials | Entered Mines 2189 | -10/Mines | Discovered new exit (range 7) 2336 | -10/Mines | Learned Materials interactive machine intel 2448 | -10/Mines | Found a hidden stash of uninstalled traps 2726 | -10/Mines | Discovered new exit (range 11) 2796 | -10/Mines | Received a Mining Laser from a helpful Derelict 2813 | -10/Mines | Assembled infested the area 3224 | -10/Mines | Discovered new exit (range 10) 3317 | -10/Mines | Assisted by bots powering up and referring to "LRC-V3" 4248 | -10/Mines | Entered Exiles 4269 | -10/Exiles | Discovered new exit (range 16) 4288 | -10/Exiles | Met 8R-AWN 4312 | -10/Exiles | Met EX-HEX 4357 | -10/Exiles | Met EX-BIN 4380 | -10/Exiles | Aligned with FarCom system 4381 | -10/Exiles | Given EX-Vault access code 4418 | -10/Exiles | Opened EX-Vault 4431 | -10/Exiles | Found Superbattery 4463 | -10/Exiles | Warned to stay clear of 0b10 Research branches 4507 | -10/Exiles | Met EX-DEC 4563 | -10/Exiles | Discovered new exit (range 17) 4586 | -10/Exiles | Left Exiles lab with Superbattery 4586 | -10/Exiles | Entered Mines 4588 | -9/Mines | Learned Materials stockpile data 4604 | -9/Mines | Discovered new exit (range 13) 4631 | -9/Mines | Entered Materials 4631 | -8/Materials | Evolved 4 slots: Propulsion x1, Utility x3 4633 | -8/Materials | Loaded intel: 19 interactive machine locations 5131 | -8/Materials | Garrison activated, responded to threat 5243 | -8/Materials | Discovered new exit (range 16) 5394 | -8/Materials | Discovered new exit (range 7) 5476 | -8/Materials | Build established: Hacker-Mutant 5566 | -8/Materials | Repaired Propulsion Shielding 5596 | -8/Materials | Repaired Flight Unit 5632 | -8/Materials | Repaired Flight Unit 5660 | -8/Materials | Repaired Flight Unit 6101 | -8/Materials | Discovered new exit (range 15) 6125 | -8/Materials | Discovered new exit (range 9) 7576 | -8/Materials | Entered Storage 7811 | -8/Storage | Discovered new exit (range 7) 7846 | -8/Storage | Entered Factory 7846 | -7/Factory | Evolved 2 slots: Utility x2 8013 | -7/Factory | Identified exit to Lower Caves 8242 | -7/Factory | Fabricated Hacking Suite (x1) 8370 | -7/Factory | Discovered new exit (range 15) 8524 | -7/Factory | Entered another Factory area 8524 | -6/Factory | Evolved 2 slots: Utility x2 8593 | -6/Factory | Discovered new exit (range 2) 8651 | -6/Factory | Discovered new exit (range 5) 8712 | -6/Factory | Repaired Broken Xenon Bombardment Thruster? 8812 | -6/Factory | Build established: Wizard-Mutant 8860 | -6/Factory | Repaired Hacking Suite? 9070 | -6/Factory | Allied Derelicts emerged from ambush trap array 9217 | -6/Factory | Fabricated Cld. VTOL Module? 9267 | -6/Factory | Fabricated Launcher Guidance Computer? 9428 | -6/Factory | Repaired Katana 9578 | -6/Factory | Build established: Wizard-Sprinter 9618 | -6/Factory | Fabricated Cld. VTOL Module? 9693 | -6/Factory | Repaired Lrn. Missile Launcher 10126 | -6/Factory | Build established: Wizard-Mutant 10172 | -6/Factory | Repaired Lrn. Missile Launcher 10438 | -6/Factory | Build established: Wizard-Sprinter 10463 | -6/Factory | Crushed by falling debris 10511 | -6/Factory | Repaired Broken Lrn. Missile Launcher? 10631 | -6/Factory | Identified exit to Factory 10888 | -6/Factory | Repaired Nuclear Pulse Thruster 10908 | -6/Factory | Sucked down chute 10908 | -6/Factory | Entered Waste 10909 | -6/Waste | Met a frightened Derelict 10912 | -6/Waste | Spotted C-40 Crusher 10912 | -6/Waste | Spotted C-40 Crusher 10913 | -6/Waste | Spotted C-40 Crusher 10932 | -6/Waste | Spotted C-40 Crusher 10940 | -6/Waste | Spotted C-40 Crusher 10947 | -6/Waste | Spotted C-40 Crusher 10952 | -6/Waste | Discovered new exit (range 16) 10957 | -6/Waste | Entered Factory 10978 | -6/Factory | Build established: Wizard-Mutant 11214 | -6/Factory | Repaired Lrn. Missile Launcher? 11331 | -6/Factory | Fabricated Lrn. Missile Launcher? 11476 | -6/Factory | Build established: Hacker-Sprinter 11637 | -6/Factory | Repaired Katana? 11722 | -6/Factory | Allied Derelicts emerged from ambush trap array 11769 | -6/Factory | Discovered exit to Factory (range 5) 11803 | -6/Factory | Fabricated Cld. VTOL Module? 11882 | -6/Factory | Repaired Cld. VTOL Module 11999 | -6/Factory | Fabricated Cld. VTOL Module? 12053 | -6/Factory | Entered another Factory area 12053 | -5/Factory | Evolved 2 slots: Propulsion x1, Utility x1 12142 | -5/Factory | Identified exit to Factory 12162 | -5/Factory | Discovered new exit (range 12) 12488 | -5/Factory | Build established: Wizard-Mutant 12685 | -5/Factory | Discovered new exit (range 6) 12963 | -5/Factory | Fabricated Imp. Hacking Suite? 13045 | -5/Factory | Fabricated Imp. Hacking Suite? 13257 | -5/Factory | Lost 3 parts (1n2u) 13358 | -5/Factory | Fabricated Imp. Hacking Suite? 13478 | -5/Factory | Spotted B-75 Beast 13538 | -5/Factory | Repaired Adv. Weight Redist. System? 13876 | -5/Factory | Garrison activated, responded to threat 13924 | -5/Factory | Build established: Wizard-Sprinter 13948 | -5/Factory | Fabricated Adv. Hacking Suite? 13978 | -5/Factory | Entered another Factory area 13978 | -4/Factory | Evolved 2 slots: Propulsion x1, Utility x1 14079 | -4/Factory | Sucked down chute 14079 | -4/Factory | Entered Waste 14082 | -4/Waste | Spotted C-40 Crusher 14085 | -4/Waste | Spotted C-40 Crusher 14089 | -4/Waste | Warlord forces began an assault 14113 | -4/Waste | Destroyed C-40 Crusher 14132 | -4/Waste | Spotted C-40 Crusher 14138 | -4/Waste | Allies destroyed C-40 Crusher 14140 | -4/Waste | Spotted C-40 Crusher 14146 | -4/Waste | Allies destroyed C-40 Crusher 14159 | -4/Waste | Spotted C-40 Crusher 14164 | -4/Waste | Allies destroyed C-40 Crusher 14167 | -4/Waste | Destroyed C-40 Crusher 14179 | -4/Waste | Discovered new exit (range 12) 14193 | -4/Waste | Lost 5 allies 14272 | -4/Waste | Entered Factory 14272 | -4/Factory | Accompanied by 13 allies 14400 | -4/Factory | Repaired Cld. VTOL Module? 14450 | -4/Factory | Fabricated Adv. System Shield? 14504 | -4/Factory | Discovered new exit (range 6) 14545 | -4/Factory | Repaired Nuclear Pulse Array 14638 | -4/Factory | Lost 3 allies 14681 | -4/Factory | Discovered new exit (range 11) 14742 | -4/Factory | Discovered new exit (range 11) 14838 | -4/Factory | Discovered new exit (range 4) 14839 | -4/Factory | Destroyed 9 combat bots 14899 | -4/Factory | Fabricated Adv. Hacking Suite? 14899 | -4/Factory | Lost 3 parts (1n1u1w) 14907 | -4/Factory | Entered Upper Caves 14965 | -4/Upper Caves | Lost 4 parts (2n1u1w) 15177 | -4/Upper Caves | Attracted the attention of an 0b10 checkpoint 15187 | -4/Upper Caves | Core integrity fell below 50% 15251 | -4/Upper Caves | Build established: Wizard-Mutant 15256 | -4/Upper Caves | Core integrity fell below 20% 15269 | -4/Upper Caves | Destroyed by S-27 Virus with Autogun Last Messages --------------- Slug penetrates Wall. Acquired 1 matter. Slug penetrates Wall. Acquired 4 matter. Slug penetrates Wall. Penetrated by Slug. Katana destroyed. Acquired Lgt. Ion Engine. Slug penetrates Wall. Penetrated by Slug. Antimatter Reactor destroyed. Penetrated by Slug. Slug penetrates Wall. Penetrated by Slug. Lgt. Ion Engine destroyed. Hacking Suite destroyed. Com. Battery destroyed. Slug penetrates Wall. Penetrated by Slug. [Achievement: 10k Club] Map ----- +----------------------------------------------------+ | ?????????????????????????????????????????????????? | | ?????????????????????????????????????????????????? | | ?????????????????????????????????????????????????? | | ?????????????????????????????????????????????????? | | ?????????????????????????????????????????????????? | | ?????????????????????????????????????????????????? | | ?????????????????????????????????????????????????? | | ???????????????????????????????##????????????????? | | ???????????????????????????????# ###????####?????? | | ??????????????????????????##???# ##??## ###???? | | ?????????????????????????## ??# #### ##### | | ?????????????????????????# #??# ## ## | | ?????????????????????????# #???# | | ??????????????????????????# ##### | | ?????????????????????????## ## ## | | ?????????????????????????# ## # | | ?????????????????????????# ## ## | | ?????????????????????????# ##### ## | | ????????????????????????## ##??## # | | ????????????####?????#### ##???# | | ????????????# ??## s ##????# | | ???????????# ## s #?????# | | ??????????? s ##?????## ### | | ?????????? s########?##?## | | ?????????? s### ###### | | ?????????? @ ## ## | | ???????????# ## | | ????????????# ??## | | ????????????## ??????# ### | | ?????????????## ????????## #?# | | ??????????????##???????????# ## ### | | ???????????????????????????# ## ### | | ???????????????????????????##### ###?## | | ???????????????????????????????# ##????# | | ???????????????????????????????## #??# | | ?????????????????????????????????# #?# | | ?????????????????????????????????? ######## | | ?????????????????????????????????? ???????? | | ?????????????????????????????????# ???????? | | ?????????????????????????????????## ????????# | | ??????????????????????????????????# ???????## | | ?????????????????????????????????? ???????## | | ?????????????????????????????????? ??????### | | ???????????????????????????????????? ???????## | | ????????????????????????????????????????????# # | | ????????????????????????????????????????????## ## | | ?????????????????????????????????????????????####? | | ?????????????????????????????????????????????????? | | ?????????????????????????????????????????????????? | | ?????????????????????????????????????????????????? | +----------------------------------------------------+ Best States ------------- Heat Dissipation 43 Energy Generation 21 Energy Capacity 325 Matter Stores 300 Matter Capacity 300 Sight Range 18 Terrain Scan Density 10 Additional Mass Support 9 Propulsion Shielding 33 Phase Shifting 10 Evasion (%) 75 Launcher Accuracy 40 Recoil Reduction 3 Offensive Hacking 68 Defensive Hacking 22 Item Schematics ----------------- Lgt. Ion Engine | -8/Materials | Hacked Imp. Flight Unit | -8/Materials | Hacked Hacking Suite | -7/Factory | Scanalyzed Rocket Launcher | -7/Factory | Scanalyzed Adv. Weight Redist. System | -7/Factory | Scanalyzed Hvy. Missile Launcher | -7/Factory | Hacked Cld. VTOL Module | -6/Factory | Hacked Imp. Component Analysis Suite | -6/Factory | Hacked Launcher Guidance Computer | -6/Factory | Hacked Gyrokinetic Inverter | -6/Factory | Hacked Lrn. Missile Launcher | -6/Factory | Scanalyzed Lgt. Angular Momentum Engine | -6/Factory | Hacked Structural Scanner | -6/Factory | Scanalyzed System Shield | -6/Factory | Scanalyzed Angular Momentum Engine | -5/Factory | Scanalyzed Hvy. Gauss Cannon | -5/Factory | Hacked Imp. Hacking Suite | -5/Factory | Hacked Adv. Hacking Suite | -5/Factory | Hacked Adv. System Shield | -5/Factory | Hacked Nuclear Pulse Array | -4/Factory | Hacked Imp. Phase Shifter | -4/Factory | Scanalyzed Robot Schematics ------------------ A-15 Conveyor | -6/Factory | Hacked Fabricated ------------ Hacking Suite | x1 | -7/Factory Cld. VTOL Module | x1 | -6/Factory Launcher Guidance Computer | x2 | -6/Factory Cld. VTOL Module | x1 | -6/Factory Lrn. Missile Launcher | x1 | -6/Factory Cld. VTOL Module | x1 | -6/Factory Cld. VTOL Module | x1 | -6/Factory Imp. Hacking Suite | x1 | -5/Factory Imp. Hacking Suite | x1 | -5/Factory Imp. Hacking Suite | x1 | -5/Factory Adv. Hacking Suite | x1 | -5/Factory Adv. System Shield | x1 | -4/Factory Adv. Hacking Suite | x1 | -4/Factory Alien Tech Used ----------------- None Achievements -------------- 10k Club Below The More The Merrier Challenges ------------ None Game ------ Seed XenonMiningReplicator Manual? 0 Play Time 04:42:29 Cumulative 24.0 hours Start 2024.04.18 @ 14:01:05 End 2024.04.22 @ 14:48:55 Sessions 9 Manual Loads 0 Difficulty Rogue Special Mode None Game No. 17 Rogue 12 Adventurer 5 Explorer 0 Win Type - Total 0 Types 0/0/0/0/0/0/0/0/0 Lore% 14 Gallery% 17 Achievement% 18 Wizard Run 0 Options --------- Layout 1 ASCII 0 Keyboard 0 Movement Numpad Keybinds 0 Fullscreen 1 Font 24/Smallcaps Map View 50x35 Zoom Use 0% Tactical HUD 0 Map Filters NONE Filters NONE Steam 1 RUN: 78a93d4b-9de8-49c4-9d8c-4ac38e36ec89